bitfinex-derivatives/quotes_ETHF0:USTF0_20251107
["timestamp","ask_amount","ask_price","bid_price","bid_amount"]
[1762533432497,0.48891,3315.9,3315.8,0.48892]
[1762533432903,0.48892,3315.8,3315.7,0.00452556]
[1762533433101,0.48892,3315.8,3315.7,0.49346556]
[1762533433301,0.48892,3315.8,3315.7,0.00452556]
[1762533434094,0.48901,3315.2,3315.1,0.49156264]
[1762533434402,0.48901,3315.2,3315.1,0.00255264]
[1762533435001,0.82001,3315.2,3315.1,0.49157264]
[1762533435192,0.331,3315.9,3315.1,0.00255264]
[1762533435396,3.2078,3316.0,3315.9,0.48891]
[1762533435597,0.48895,3315.7,3315.6,0.48894]
[1762533435800,0.48901,3315.2,3315.1,0.00255264]
[1762533436008,0.82001,3315.2,3315.1,0.00255264]
[1762533436399,0.48907,3314.8,3314.7,0.48908]
[1762533436699,0.48905,3314.9,3314.3,3.2078]
[1762533436902,0.48913,3314.5,3314.4,0.48913]
[1762533437100,0.48913,3314.5,3313.8,1.97060626]
[1762533437101,0.331,3314.5,3313.8,3.2078]
[1762533437304,0.331,3314.5,3312.9,3.2078]
[1762533437305,0.48928,3313.4,3312.9,3.2078]
[1762533437493,0.00245252,3313.4,3313.3,0.48929]
[1762533437697,0.48932,3313.2,3313.1,0.48932]
[1762533437897,0.49174252,3313.4,3313.3,0.48929]
[1762533438096,3.2078,3314.2,3314.1,0.48917]
[1762533438298,0.00452556,3314.5,3314.4,0.48913]
[1762533438908,0.48913,3314.4,3313.8,3.2078]
[1762533439099,0.0026515,3314.4,3314.3,0.48913]
[1762533439704,0.0026515,3314.4,3313.8,3.2078]
[1762533440211,0.48916,3314.2,3313.9,0.4892]
[1762533440403,0.4917915,3314.4,3314.2,0.48916]
[1762533440603,0.8227915,3314.4,3314.2,0.48916]
[1762533440908,0.3336515,3314.4,3314.2,0.48916]
[1762533441115,0.3336515,3314.4,3313.0,1.59870626]
[1762533441116,0.0026515,3314.4,3314.3,0.48914]
[1762533441607,0.0026515,3314.4,3314.3,8.48914]
[1762533441801,1.07660024,3316.0,3314.2,3.2078]
[1762533441802,3.2078,3315.4,3315.3,0.48899]
[1762533442199,3.69678,3315.4,3315.3,0.48899]
[1762533442603,3.5388,3315.9,3314.8,3.2078]
[1762533442911,0.00387166,3315.9,3315.8,0.48892]
[1762533443303,0.00387166,3315.9,3315.5,0.48895]
[1762533443609,0.00387166,3315.9,3315.0,0.00452556]
[1762533443805,3.2078,3315.8,3315.1,0.48901]
[1762533444004,0.48897,3315.5,3315.3,0.48899]
[1762533444204,0.00387166,3315.9,3315.6,0.48895]
[1762533444408,3.2078,3315.8,3315.4,0.48897]
[1762533444599,3.2078,3315.8,3315.0,0.00452556]
[1762533445101,0.00387166,3315.9,3315.8,0.48892]
[1762533445300,0.00387166,3315.9,3315.8,3.69672]
[1762533445605,3.2078,3317.0,3316.8,0.48877]
[1762533445805,3.2078,3317.0,3316.4,3.2078]
[1762533446002,0.48877,3316.9,3316.7,0.48878]
[1762533446202,3.2078,3317.0,3315.9,3.6967]
[1762533446397,0.4888,3316.7,3316.5,0.48882]
[1762533446610,0.49159032,3316.7,3316.5,0.48882]
[1762533446806,0.00279032,3316.7,3316.5,0.48882]
[1762533447806,0.48885,3316.3,3316.1,0.48887]
[1762533448103,0.00279032,3316.7,3315.5,3.2078]
[1762533448104,3.2078,3316.5,3315.5,3.2078]
[1762533448501,0.48889,3316.1,3315.5,3.2078]
[1762533448907,0.48889,3316.0,3315.8,0.48891]
[1762533449110,0.48896,3315.6,3315.4,0.48897]
[1762533449303,0.48898,3315.4,3315.1,3.2078]
[1762533449610,3.69676,3315.6,3315.3,0.48898]
[1762533449812,3.69676,3315.6,3315.4,0.48897]
[1762533450005,3.69676,3315.6,3315.0,0.00452556]
[1762533450006,3.2078,3315.6,3315.0,0.00452556]
[1762533450309,3.2078,3315.6,3314.2,3.2078]
[1762533450310,0.48905,3314.9,3314.2,3.2078]
[1762533450511,0.48904,3315.0,3314.6,0.48909]
[1762533450712,0.48904,3315.0,3314.7,0.48908]
[1762533451009,3.2078,3315.5,3314.9,0.48905]
[1762533451208,3.21232556,3315.5,3314.9,0.00452556]
[1762533451403,0.48903,3315.1,3314.9,0.00452556]
[1762533451605,3.69683,3315.1,3314.9,0.00452556]
[1762533451805,3.2078,3315.1,3314.9,0.00452556]
[1762533452006,3.69684,3315.1,3314.9,0.00452556]
[1762533452307,0.489,3315.3,3315.1,0.48901]
[1762533452508,0.48904,3315.1,3314.9,0.00452556]
[1762533452810,0.48905,3314.9,3314.4,0.48912]
[1762533453013,3.69685,3314.9,3314.4,0.48912]
[1762533453210,0.3066,3315.2,3314.2,3.2078]
[1762533453508,0.48904,3315.0,3314.8,0.49259391]
[1762533453905,0.48904,3315.0,3314.8,0.00352391]
[1762533454207,3.69685,3314.9,3314.8,0.00352391]
[1762533454702,3.2078,3314.9,3314.1,0.48917]
[1762533454902,0.48913,3314.5,3314.4,0.48913]
[1762533455109,3.2078,3314.9,3313.8,3.2078]
[1762533455505,0.4892,3313.9,3313.8,3.2078]
[1762533455817,0.49132022,3313.9,3313.8,3.21137797]
[1762533456008,0.49132022,3313.9,3313.8,0.00357797]
[1762533456206,0.00212022,3313.9,3313.8,0.49279797]
[1762533456401,0.49132022,3313.9,3313.8,0.49279797]
[1762533456608,0.49132022,3313.9,3313.8,0.00357797]
[1762533457710,0.00212022,3313.9,3312.6,3.2078]
[1762533457905,3.2078,3313.5,3313.4,0.48927]
[1762533458104,3.2078,3313.5,3312.8,0.2187]
[1762533458105,3.20992022,3313.9,3313.8,0.48922]
[1762533458308,0.00212022,3313.9,3313.8,0.48922]
[1762533458816,3.20992022,3313.9,3313.8,0.00244258]
[1762533459004,3.69912022,3313.9,3313.8,4.258e-05]
[1762533459206,0.48929,3313.3,3312.4,3.2078]
[1762533459402,0.48922,3313.8,3312.9,3.2078]
[1762533459606,3.20992022,3313.9,3312.8,0.2211]
[1762533459607,0.00212022,3313.9,3313.8,0.48922]
[1762533460210,0.00212022,3313.9,3313.8,0.49238314]
[1762533460413,0.49132022,3313.9,3313.8,0.00316314]
[1762533461609,0.49132022,3313.9,3313.8,0.49238314]
[1762533461817,0.00212022,3313.9,3313.8,0.49238314]
[1762533462010,0.49132022,3313.9,3313.8,0.00316314]
[1762533463017,0.48933,3313.0,3312.9,3.2078]
[1762533464014,0.48939,3312.7,3312.5,0.00452556]
[1762533464219,0.4893,3313.2,3312.5,0.00717617]
[1762533464419,3.2078,3313.3,3312.5,0.00717617]
[1762533464921,3.2078,3313.7,3312.8,3.2078]
[1762533465113,0.00452556,3314.2,3313.2,3.2078]
[1762533465313,3.2078,3313.9,3313.1,0.2805]
[1762533465524,0.48921,3313.8,3313.7,0.48921]
[1762533465718,3.2078,3313.9,3313.4,0.48926]
[1762533465917,0.48927,3313.4,3313.3,3.2078]
[1762533466216,0.49150301,3313.4,3313.3,3.2078]
[1762533466416,0.49150301,3313.4,3313.3,3.69709]
[1762533466720,0.48932,3313.1,3312.5,0.00717617]
[1762533466920,0.00223301,3313.4,3313.3,0.48929]
[1762533467724,0.48929,3313.3,3313.2,0.4893]
[1762533467926,3.21003301,3313.4,3312.5,0.00717617]
[1762533468218,0.48939,3312.6,3312.5,0.00717617]
[1762533468418,0.2823,3312.4,3311.0,1.59870626]
[1762533468626,3.2078,3311.6,3310.5,3.2078]
[1762533468821,3.2078,3311.6,3311.1,0.48961]
[1762533469022,3.2078,3311.6,3311.4,0.48956]
[1762533469526,3.2078,3311.6,3311.4,0.49324963]
[1762533469722,0.00452556,3311.8,3311.7,0.48953]
[1762533470523,3.2078,3312.9,3311.7,14.0392]
[1762533470721,3.2078,3312.9,3312.7,0.48937]
[1762533471019,0.00223301,3313.4,3313.3,0.48929]
[1762533471220,3.21003301,3313.4,3313.2,0.4893]
[1762533472522,3.21003301,3313.4,3313.0,0.00452556]
[1762533472722,3.21003301,3313.4,3313.1,0.48931]
[1762533472927,0.48929,3313.3,3313.0,0.00452556]
[1762533473128,0.48929,3313.3,3313.1,0.48931]
[1762533473734,0.48931,3313.2,3313.0,0.49385556]
[1762533473921,3.21003301,3313.4,3313.2,0.4893]
[1762533474920,0.48929,3313.3,3313.0,0.49384556]
[1762533475127,0.48929,3313.3,3313.0,0.00452556]
[1762533475324,3.21003301,3313.4,3313.0,0.00452556]
[1762533475325,3.21003301,3313.4,3313.2,0.48929]
[1762533477329,3.21003301,3313.4,3313.0,0.00452556]
[1762533477630,0.48929,3313.3,3313.2,0.4893]
[1762533477830,0.48929,3313.3,3313.0,0.00452556]
[1762533477831,3.21003301,3313.4,3313.1,0.48932]
[1762533478130,3.69931301,3313.4,3313.0,0.00452556]
[1762533478328,3.21003301,3313.4,3313.3,0.48929]
[1762533479431,0.79902,3313.1,3313.0,0.00452556]
[1762533479622,0.48935,3312.9,3312.8,0.48935]
[1762533479830,0.48931,3313.2,3312.6,0.48939]
[1762533480126,0.48931,3313.2,3312.9,0.48935]
[1762533480321,0.48938,3312.7,3312.3,3.2078]
[1762533480527,3.2078,3313.3,3313.2,0.4893]
[1762533481527,0.48934,3313.0,3312.9,0.48934]
[1762533481729,0.00223301,3313.4,3312.8,3.2078]
[1762533481923,0.00223301,3313.4,3313.3,0.48929]
[1762533482433,3.2078,3314.1,3314.0,0.48919]
[1762533482734,3.2078,3314.9,3314.8,0.48907]
[1762533483134,3.2078,3314.9,3314.1,1.61860306]
[1762533483438,3.2078,3314.5,3314.4,0.48913]
[1762533483625,3.69691,3314.5,3314.4,0.48913]
[1762533483932,3.69691,3314.5,3314.2,0.00452556]
[1762533483933,0.48914,3314.3,3314.2,0.00452556]
[1762533484431,8.48914,3314.3,3314.2,0.00452556]
[1762533484638,0.48921,3313.9,3313.7,0.48922]
[1762533484832,3.2078,3314.4,3313.5,3.2078]
[1762533485036,0.3097,3314.5,3313.5,3.2078]
[1762533485037,0.48911,3314.5,3314.3,0.48913]
[1762533485230,3.2078,3314.4,3313.6,2.10784306]
[1762533485431,0.79892,3313.8,3313.2,1.61860306]
[1762533485631,0.79892,3313.8,3313.2,1.62087199]
[1762533485838,0.79892,3313.8,3313.6,0.48923]
[1762533486033,0.79892,3313.8,3313.2,1.62087199]
[1762533486034,3.2078,3313.9,3313.8,0.48921]
[1762533486341,3.2078,3313.9,3313.6,0.48923]
[1762533486541,3.2078,3313.9,3313.5,0.48925]
[1762533486742,0.48926,3313.5,3313.4,0.48927]
[1762533487041,3.2078,3313.5,3313.4,0.48927]
[1762533487432,3.2078,3314.2,3314.1,0.48917]
[1762533487840,3.69695,3314.2,3314.1,0.48917]
[1762533488034,3.2078,3314.2,3314.1,0.48917]
[1762533488438,0.48917,3314.1,3313.4,1.61860306]
[1762533488637,3.2078,3314.2,3313.4,1.61860306]
[1762533488838,3.2078,3314.2,3313.9,0.48919]
[1762533489642,3.2078,3314.2,3313.2,1.62087199]
[1762533489839,0.48929,3313.3,3313.2,0.00226893]
[1762533490041,3.69707,3313.5,3313.2,0.00226893]
[1762533490238,3.69707,3313.5,3313.4,0.48927]
[1762533490239,3.2078,3313.5,3313.4,0.48927]
[1762533490644,0.48929,3313.3,3313.2,0.00226893]
[1762533490841,3.69706,3313.5,3313.2,0.00226893]
[1762533491040,0.48924,3313.7,3313.2,0.00226893]
[1762533491244,0.48923,3313.7,3313.2,0.00226893]
[1762533491444,3.2078,3313.5,3313.4,0.48926]
[1762533491641,0.48923,3313.7,3313.6,0.48924]
[1762533491842,0.48921,3313.8,3313.7,0.48922]
[1762533492043,0.48924,3313.7,3313.6,0.48924]
[1762533492540,3.2078,3314.0,3313.2,0.00226893]
[1762533492846,3.5175,3313.6,3313.2,0.00226893]
[1762533493144,0.48929,3313.3,3313.2,0.49156893]
[1762533493344,0.48929,3313.4,3313.3,0.48929]
[1762533493546,4.00675,3313.6,3313.2,0.00226893]
[1762533493842,3.2078,3313.6,3313.5,0.48926]
[1762533494242,3.2078,3313.6,3313.5,8.48926]
[1762533494744,0.3097,3314.5,3314.4,0.48912]
[1762533494947,3.5175,3314.5,3314.1,0.48915]
[1762533495350,3.5175,3314.5,3313.5,1.61860306]
[1762533495549,3.5175,3314.5,3313.4,3.2078]
[1762533495550,0.48926,3313.5,3313.4,3.2078]
[1762533495745,0.3097,3313.8,3313.4,3.2078]
[1762533496047,0.48929,3313.3,3313.2,0.00226893]
[1762533496644,3.69709,3313.3,3313.2,0.00226893]
[1762533496847,0.48937,3312.8,3312.1,1.61860306]
[1762533497045,0.00452556,3312.8,3312.2,1.61860306]
[1762533497250,0.00452556,3312.8,3312.7,0.48938]
[1762533497752,0.00452556,3312.8,3312.7,0.49313101]
[1762533498043,0.49388556,3312.8,3312.7,0.00375101]
[1762533499349,0.3097,3312.4,3311.9,0.48949]
[1762533501051,3.70399798,3312.8,3312.6,0.48938]
[1762533501866,3.70399798,3312.8,3312.7,0.48938]
[1762533502066,3.21463798,3312.8,3312.7,0.48938]
[1762533502862,3.21463798,3312.8,3312.0,4.82959433]
[1762533502863,0.00683798,3312.8,3312.4,3.2078]
[1762533503067,0.00683798,3312.8,3312.7,0.48938]
[1762533503454,0.00683798,3312.8,3312.7,9.01178]
[1762533503961,0.00683798,3312.8,3312.5,1.61860306]
[1762533504264,0.49619798,3312.8,3312.7,0.48938]
[1762533504463,0.48938,3312.7,3312.5,0.48939]
[1762533504759,0.00683798,3312.8,3312.4,3.2078]
[1762533504952,0.00683798,3312.8,3312.7,0.48938]
[1762533505152,0.48941,3312.5,3312.4,3.69721]
[1762533505857,0.00683798,3312.8,3312.5,0.4894]
[1762533506057,0.00683798,3312.8,3312.7,0.48938]
[1762533506867,0.00683798,3312.8,3312.6,0.48938]
[1762533507167,0.00683798,3312.8,3312.4,3.2078]
[1762533507565,0.00683798,3312.8,3312.7,0.48938]
[1762533508460,0.00683798,3312.8,3312.7,1.01178]
[1762533508860,0.00683798,3312.8,3312.4,3.2078]
[1762533509063,0.49619798,3312.8,3312.7,0.48938]
[1762533509371,0.00683798,3312.8,3312.7,0.48938]
[1762533510267,0.00683798,3312.8,3312.4,3.2078]
[1762533510461,0.00683798,3312.8,3312.7,0.48938]
[1762533510765,0.00683798,3312.8,3312.7,1.03398]
[1762533511262,0.00683798,3312.8,3312.7,9.03398]
[1762533511468,3.69704,3313.6,3312.7,9.03398]
[1762533511469,3.2078,3313.6,3313.5,0.48926]
[1762533511966,3.2078,3313.6,3313.0,3.2078]
[1762533512170,0.48935,3312.9,3312.7,0.10214935]
[1762533512461,0.49258507,3312.9,3312.6,3.2078]
[1762533512663,0.00323507,3312.9,3312.8,0.48936]
[1762533512864,0.00323507,3312.9,3312.8,1.03396]
[1762533513569,0.00323507,3312.9,3312.8,0.48936]
[1762533513972,0.00323507,3312.9,3312.6,3.2078]
[1762533514176,0.00323507,3312.9,3312.8,0.48936]
[1762533514474,0.00323507,3312.9,3312.8,1.03396]
[1762533514676,1.07660024,3314.6,3313.1,0.254]
[1762533514876,0.48918,3314.0,3313.8,0.48921]
[1762533515076,3.5175,3314.5,3313.5,3.2078]
[1762533515275,3.5175,3314.5,3314.0,0.48918]
[1762533515569,3.5175,3314.5,3313.1,2.38560835]
[1762533515570,0.31246583,3314.5,3314.4,0.48912]
[1762533515777,0.80157583,3314.5,3314.4,0.00364873]
[1762533515972,4.00937583,3314.5,3314.4,0.00364873]
[1762533516173,4.53197583,3314.5,3314.4,0.00364873]
[1762533516575,0.48921,3313.9,3313.7,0.48922]
[1762533516771,0.31246583,3314.5,3313.4,3.2078]
[1762533517074,0.31246583,3314.5,3313.1,0.254]
[1762533517075,0.00276583,3314.5,3314.2,0.48915]
[1762533517276,3.51696583,3314.5,3313.3,3.2078]
[1762533517581,3.51696583,3314.5,3314.0,0.48918]
[1762533518281,0.48918,3314.1,3314.0,0.48918]
[1762533518481,3.51696583,3314.5,3314.2,0.48914]
[1762533518685,3.51696583,3314.5,3313.3,3.21145756]
[1762533518686,0.48916,3314.2,3313.3,3.21145756]
[1762533518875,3.51696583,3314.5,3313.3,3.21145756]
[1762533519275,0.48915,3314.3,3314.2,0.48915]
[1762533519471,3.51696583,3314.5,3313.3,3.21145756]
[1762533519677,0.4892,3313.9,3313.3,3.21145756]
[1762533519976,0.48914,3314.4,3314.1,0.48916]
[1762533520183,0.4892,3313.9,3313.3,3.21145756]
[1762533520582,3.51696583,3314.5,3313.3,3.21145756]
[1762533520985,3.51696583,3314.5,3314.4,0.48912]
[1762533521281,0.00276583,3314.5,3314.4,1.03772]
[1762533521476,0.48906,3314.9,3314.5,0.48911]
[1762533521676,0.48906,3314.9,3313.8,8.00391879]
[1762533521677,0.5625,3314.3,3313.8,8.00391879]
[1762533521877,0.5625,3314.3,3313.4,3.73031462]
[1762533521878,1.05177,3313.4,3313.0,3.2078]
[1762533522076,1.38082,3313.1,3313.0,3.2078]
[1762533522274,1.05188,3312.7,3312.6,3.2078]
[1762533522475,1.05188,3312.7,3311.1,3.73031462]
[1762533522476,1.38093,3312.4,3312.3,0.00452556]
[1762533523180,1.383269,3312.4,3312.3,0.00815842]
[1762533524383,0.329,3311.7,3311.1,3.2078]
[1762533524585,0.5625,3311.2,3311.1,3.2078]
[1762533525483,0.5625,3311.2,3311.1,3.21042516]
[1762533526286,0.5625,3311.2,3311.1,0.00262516]
[1762533526479,0.5625,3311.2,3310.8,0.00452556]
[1762533526480,1.05214,3310.9,3310.8,0.00452556]
[1762533526687,0.5625,3310.9,3309.7,3.2078]
[1762533526983,3.2078,3310.2,3309.3,3.2078]
[1762533527282,0.329,3309.6,3308.8,3.2078]
[1762533527480,0.0024967,3309.6,3309.5,0.48985]
[1762533528181,3.5368,3311.0,3310.6,0.48968]
[1762533528387,3.5368,3311.0,3309.6,3.2078]
[1762533528589,3.5368,3310.3,3309.2,0.00453275]
[1762533528786,3.5368,3310.3,3309.2,3.21233275]
[1762533528987,3.5368,3310.3,3309.2,0.00453275]
[1762533529188,0.00453275,3310.1,3309.8,0.4898]
[1762533529486,0.00453275,3310.1,3310.0,3.2078]
[1762533529687,0.00453275,3310.1,3309.9,0.48979]
[1762533530091,0.00453275,3310.1,3310.0,3.2078]
[1762533530681,3.2078,3311.8,3310.0,3.2078]
[1762533530886,3.2078,3311.4,3311.0,0.48961]
[1762533531183,3.2078,3311.4,3310.5,3.2078]
[1762533531390,0.48965,3310.9,3310.6,0.48968]
[1762533531590,0.48965,3310.9,3310.5,3.2078]
[1762533531786,0.0026609,3310.9,3310.6,0.48968]
[1762533531994,0.0026609,3310.9,3310.7,0.48966]
[1762533532188,3.7001109,3310.9,3310.5,3.69749]
[1762533532384,0.48966,3310.8,3310.5,0.48969]
[1762533532595,0.48966,3310.8,3310.4,0.00453275]
[1762533532792,3.2104609,3310.9,3310.6,0.48968]
[1762533532990,3.7001109,3310.9,3310.6,0.48968]
[1762533533192,0.48969,3310.6,3310.4,0.00453275]
[1762533533696,3.2078,3310.5,3310.4,0.00453275]
[1762533534085,3.2078,3310.5,3310.4,3.275e-05]
[1762533534387,3.2104609,3310.9,3310.4,0.48974275]
[1762533534589,0.48967,3310.8,3310.5,0.4897]
[1762533534787,0.48967,3310.8,3310.4,3.275e-05]
[1762533534788,3.2104609,3310.9,3310.4,3.275e-05]
[1762533534987,3.7001109,3310.9,3310.5,0.48969]
[1762533535194,3.7001109,3310.9,3310.4,3.275e-05]
[1762533535195,0.48968,3310.7,3310.4,3.275e-05]
[1762533535494,3.7001109,3310.9,3310.6,0.48968]
[1762533535690,3.2104609,3310.9,3310.7,0.48967]
[1762533536192,0.0026609,3310.9,3310.8,0.5486]
[1762533536391,0.0026609,3310.9,3310.7,0.48967]
[1762533536894,0.0026609,3310.9,3310.8,0.5052]
[1762533537096,0.0026609,3310.9,3310.8,3.713]
[1762533537588,0.0026609,3310.9,3310.8,0.5052]
[1762533537786,0.0026609,3310.9,3310.7,0.48967]
[1762533537787,0.0026609,3310.9,3310.4,3.20783275]
[1762533538397,0.48969,3310.6,3310.4,3.20783275]
[1762533538582,0.0026609,3310.9,3310.4,3.20783275]
[1762533538897,0.48969,3310.6,3310.5,0.4897]
[1762533539391,0.0026609,3310.9,3310.6,0.48969]
[1762533539586,0.48967,3310.7,3310.6,0.48969]
[1762533539787,0.0026609,3310.9,3310.8,0.48966]
[1762533539987,0.0026609,3310.9,3310.4,3.20783275]
[1762533540196,0.48969,3310.6,3310.4,3.20783275]
[1762533540387,0.0026609,3310.9,3310.4,3.20783275]
[1762533540997,0.4897,3310.6,3310.4,3.69755275]
[1762533541195,0.48967,3310.8,3310.4,3.20783275]
[1762533541394,0.0026609,3310.9,3310.4,3.20783275]
[1762533541592,0.99455,3310.2,3309.9,3.2078]
[1762533541792,0.79923,3310.3,3310.2,0.48975]
[1762533541993,0.0026609,3310.9,3310.2,0.48975]
[1762533542192,0.48973,3310.4,3310.3,0.48973]
[1762533542390,0.48978,3310.0,3309.9,3.69758]
[1762533542693,0.0026609,3310.9,3310.2,0.48975]
[1762533542893,0.48975,3310.2,3310.1,0.48976]
[1762533543491,0.48973,3310.4,3310.2,0.48973]
[1762533543694,0.48978,3310.0,3309.9,3.2078]
[1762533543898,0.48982,3309.7,3309.6,0.49436275]
[1762533544091,0.3095,3310.3,3309.6,0.00453275]
[1762533544291,0.48975,3310.2,3310.1,0.48975]
[1762533544492,0.8143,3310.3,3309.6,0.00453275]
[1762533544794,0.3095,3310.3,3309.8,0.48979]
[1762533545194,0.48976,3310.1,3310.0,0.48975]
[1762533545394,0.3095,3310.3,3309.6,0.00453275]
[1762533545591,0.48975,3310.2,3310.1,0.48975]
[1762533545791,3.2078,3310.6,3310.5,0.4897]
[1762533546295,0.0026609,3310.9,3310.7,0.48966]
[1762533546296,0.48966,3310.8,3310.7,0.48966]
[1762533546497,0.4923009,3310.9,3310.8,0.48966]
[1762533546697,0.0026609,3310.9,3310.8,0.48966]
[1762533547193,1.40560024,3312.4,3310.8,0.48966]
[1762533547194,0.48953,3311.7,3310.8,9.2486]
[1762533547388,0.3095,3311.7,3311.4,0.48957]
[1762533547593,0.3095,3311.7,3310.8,3.2078]
[1762533547594,0.48959,3311.3,3310.8,3.2078]
[1762533547799,0.3095,3311.7,3310.8,3.2078]
[1762533547990,0.3095,3311.7,3311.2,3.2078]
[1762533548192,0.48957,3311.4,3311.2,0.00347881]
[1762533548387,0.99438,3311.3,3311.2,0.00347881]
[1762533548995,0.5048,3311.3,3311.2,0.49307881]
[1762533549200,0.48958,3311.3,3311.2,0.00347881]
[1762533550097,3.69737,3311.4,3311.2,0.00347881]
[1762533550292,0.99438,3311.3,3311.2,0.00347881]
[1762533551594,1.70188769,3311.3,3311.2,0.00347881]
[1762533551995,0.48967,3310.7,3310.6,0.48967]
[1762533552194,3.2078,3311.4,3310.6,0.48967]
[1762533552195,3.2078,3311.4,3310.6,3.2078]
[1762533552396,3.2078,3311.4,3311.1,0.4896]
[1762533552602,3.2078,3311.4,3309.6,0.26313275]
[1762533552603,0.70818271,3311.3,3310.9,0.48964]
[1762533552795,0.48961,3311.1,3311.0,0.48963]
[1762533553006,0.48966,3310.9,3310.2,3.2078]
[1762533553301,0.70818271,3311.3,3310.2,3.21076318]
[1762533553498,4.00694,3311.0,3310.8,0.48965]
[1762533553803,0.4896,3311.2,3311.1,0.48961]
[1762533554004,0.48959,3311.3,3311.2,0.48959]
[1762533554905,0.48955,3311.6,3311.4,0.48955]
[1762533555107,0.48955,3311.5,3311.4,0.48955]
[1762533555298,0.7088235,3311.6,3311.0,3.2078]
[1762533555497,0.48963,3311.0,3310.6,3.2078]
[1762533555698,0.48961,3311.2,3311.1,0.48961]
[1762533556103,3.69737,3311.4,3310.6,3.2078]
[1762533556306,3.2078,3311.4,3310.8,0.48964]
[1762533556501,0.48965,3310.9,3310.7,0.48966]
[1762533556701,0.48965,3310.9,3310.8,0.48966]
[1762533556909,0.48958,3311.3,3310.6,3.2078]
[1762533557110,0.31183913,3311.7,3310.6,3.2078]
[1762533557411,3.2078,3311.4,3310.6,3.2078]
[1762533557609,0.70883977,3311.3,3310.6,3.2078]
[1762533558107,0.48966,3310.9,3310.6,3.2078]
[1762533558310,0.48961,3311.2,3310.8,0.48964]
[1762533558510,0.48962,3311.1,3311.0,0.48963]
[1762533558809,0.48964,3311.0,3310.9,0.48964]
[1762533559000,0.70883977,3311.3,3310.6,3.2078]
[1762533559197,0.4896,3311.2,3311.1,0.4896]
[1762533559401,0.48964,3311.0,3310.7,0.48966]
[1762533559605,0.70883977,3311.3,3310.6,3.2078]
[1762533559811,0.70883977,3311.3,3311.2,0.4896]
[1762533560012,0.48961,3311.1,3310.6,3.2078]
[1762533560213,3.2078,3311.4,3311.2,0.4896]
[1762533560404,0.48959,3311.3,3311.2,0.48958]
[1762533560604,3.2078,3311.4,3311.3,0.48958]
[1762533560813,3.91713923,3311.4,3311.2,0.4896]
[1762533561012,3.2078,3311.4,3310.6,3.2078]
[1762533561212,0.48958,3311.3,3311.2,0.48959]
[1762533561510,0.79913,3311.0,3310.9,0.48964]
[1762533561909,0.79913,3311.0,3310.6,3.2078]
[1762533561910,0.48973,3310.4,3310.3,0.48972]
[1762533562106,3.5173,3311.0,3310.4,0.48971]
[1762533562107,0.4897,3310.5,3310.4,0.48971]
[1762533562811,0.48973,3310.4,3310.3,0.48973]
[1762533563210,0.48973,3310.4,3310.2,0.00296318]
[1762533563211,0.70946847,3310.9,3310.8,0.48966]
[1762533563408,3.69744,3311.0,3310.9,0.48964]
[1762533563609,4.40691429,3311.0,3310.9,0.48964]
[1762533563804,3.91727429,3311.0,3310.9,0.48964]
[1762533564009,0.4896,3311.2,3311.1,0.4896]
[1762533564206,3.2078,3311.4,3310.6,3.2078]
[1762533564207,0.70938641,3311.3,3310.6,3.2078]
[1762533564508,0.70938641,3311.3,3311.2,0.4896]
[1762533564713,0.48962,3311.1,3310.6,3.2078]
[1762533564917,0.48964,3311.0,3310.6,3.2078]
[1762533565114,0.48964,3311.0,3310.9,0.48963]
[1762533566018,0.70938641,3311.3,3310.9,0.48963]
[1762533566318,0.48965,3310.9,3310.2,3.21076318]
[1762533566812,0.2711,3310.8,3310.7,0.48967]
[1762533567017,0.48973,3310.4,3310.3,0.48973]
[1762533567209,0.48973,3310.4,3310.2,3.21076318]
[1762533567409,0.48973,3310.4,3310.3,0.48972]
[1762533567612,0.4897,3310.5,3310.4,0.4897]
[1762533567919,0.48973,3310.3,3310.2,3.21076318]
[1762533568115,0.48972,3310.4,3310.3,0.48973]
[1762533568314,1.19946667,3310.7,3310.5,0.48969]
[1762533568508,0.70979667,3310.7,3310.6,0.48969]
[1762533568713,0.2711,3310.8,3310.2,3.21076318]
[1762533569014,0.93683,3310.3,3310.2,3.21076318]
[1762533569219,0.93683,3310.3,3310.2,0.00296318]
[1762533569515,1.64667349,3310.3,3310.2,0.00296318]
[1762533570020,3.69749,3310.6,3310.2,0.00296318]
[1762533570220,0.2711,3310.8,3310.5,0.4897]
[1762533570221,0.76076,3310.8,3310.5,0.4897]
[1762533570522,0.48969,3310.6,3310.5,0.4897]
[1762533570819,0.70449458,3310.7,3310.6,0.48969]
[1762533571020,3.2078,3311.0,3310.2,3.21076318]
[1762533571325,0.2711,3310.8,3310.4,0.48972]
[1762533571515,0.4897,3310.6,3310.5,0.4897]
[1762533571717,0.48972,3310.5,3310.4,0.4897]
[1762533572018,0.2711,3310.8,3310.6,0.48969]
[1762533572019,0.48967,3310.7,3310.6,0.48969]
[1762533572216,0.2711,3310.8,3310.2,0.00296318]
[1762533572417,0.4897,3310.5,3310.4,0.4897]
[1762533572612,3.2078,3311.0,3310.2,3.34736318]
[1762533572822,3.2078,3311.0,3310.9,0.48964]
[1762533573513,3.2078,3311.0,3310.4,1.62508809]
[1762533573709,3.6549,3311.0,3310.4,1.62508809]
[1762533573920,0.4471,3311.0,3310.9,0.48964]
[1762533574118,3.2078,3311.4,3310.6,3.2078]
[1762533574313,3.2078,3311.4,3311.2,0.48958]
[1762533574513,3.2078,3311.4,3311.3,0.48958]
[1762533574715,0.48959,3311.3,3310.6,4.83288809]
[1762533575418,0.48959,3311.3,3311.2,0.4896]
[1762533575818,3.2078,3311.4,3310.9,0.4627]
[1762533576024,0.4896,3311.2,3311.1,0.4896]
[1762533576326,0.70502405,3311.3,3311.2,0.4896]
[1762533576524,0.48958,3311.3,3311.2,0.4896]
[1762533576824,0.93668,3311.3,3311.2,0.4896]
[1762533577027,0.70507546,3311.3,3311.2,0.4896]
[1762533577222,3.69737,3311.4,3311.3,0.48958]